[Event "32nd NATO Chess Championship"]
[Site "Tartu, Estonia"]
[Date "2022.06.28"]
[Round "2.15"]
[White "Mouroutis, Konstantinos"]
[Black "Dekker, Ard"]
[Result "1-0"]
[TimeControl "90 min + 30 sec increment from move one"]
[WhiteFideId "4204689"]
[BlackFideId "1014528"]
[WhiteElo "2133"]
[BlackElo "1932"]

1. d4 {[%clk 01:30:56]} {[%emt 00:00:03]} Nf6 {[%clk 01:30:46]} {[%emt
00:00:15]} 2. Bf4 {[%clk 01:30:38]} {[%emt 00:00:48]} d5 {[%clk 01:30:43]}
{[%emt 00:00:33]} 3. e3 {[%clk 01:30:36]} {[%emt 00:00:32]} e6 {[%clk
01:30:56]} {[%emt 00:00:18]} 4. Nd2 {[%clk 01:30:51]} {[%emt 00:00:13]} c5
{[%clk 01:30:18]} {[%emt 00:01:09]} 5. c3 {[%clk 01:31:12]} {[%emt 00:00:08]}
Nc6 {[%clk 01:26:29]} {[%emt 00:04:21]} 6. Ngf3 {[%clk 01:31:16]} {[%emt
00:00:25]} Bd6 {[%clk 01:26:43]} {[%emt 00:00:15]} 7. Bg3 {[%clk 01:31:21]}
{[%emt 00:00:25]} O-O {[%clk 01:24:14]} {[%emt 00:03:00]} 8. Bd3 {[%clk
01:31:42]} {[%emt 00:00:09]} b6 {[%clk 01:22:20]} {[%emt 00:02:25]} 9. Ne5
{[%clk 01:31:14]} {[%emt 00:00:57]} Bxe5 {[%clk 01:18:20]} {[%emt 00:04:30]} 10.
dxe5 {[%clk 01:31:11]} {[%emt 00:00:32]} Nd7 {[%clk 01:18:03]} {[%emt
00:00:49]} 11. f4 {[%clk 01:29:56]} {[%emt 00:01:43]} f6 {[%clk 01:13:11]}
{[%emt 00:05:23]} 12. Nf3 {[%clk 01:14:59]} {[%emt 00:15:27]} Qe8 {[%clk
01:08:16]} {[%emt 00:05:26]} 13. exf6 {[%clk 01:13:49]} {[%emt 00:01:39]} gxf6
{[%clk 01:07:15]} {[%emt 00:01:31]} 14. e4 {[%clk 01:07:22]} {[%emt 00:06:57]}
Ne7 {[%clk 00:57:40]} {[%emt 00:10:05]} 15. Qe2 {[%clk 01:01:16]} {[%emt
00:06:34]} Qf7 {[%clk 00:54:01]} {[%emt 00:04:11]} 16. O-O {[%clk 00:57:38]}
{[%emt 00:04:07]} Bb7 {[%clk 00:51:36]} {[%emt 00:02:57]} 17. Rae1 {[%clk
00:56:33]} {[%emt 00:01:33]} Rae8 {[%clk 00:49:29]} {[%emt 00:02:38]} 18. exd5
{[%clk 00:49:53]} {[%emt 00:07:10]} exd5 {[%clk 00:49:27]} {[%emt 00:00:33]} 19.
Qd1 {[%clk 00:47:15]} {[%emt 00:03:05]} Bc6 {[%clk 00:43:56]} {[%emt 00:06:04]}
20. Nh4 {[%clk 00:45:20]} {[%emt 00:02:23]} Kh8 {[%clk 00:43:21]} {[%emt
00:01:05]} 21. f5 {[%clk 00:39:14]} {[%emt 00:06:36]} Nc8 {[%clk 00:39:52]}
{[%emt 00:04:00]} 22. Re6 {[%clk 00:37:54]} {[%emt 00:01:50]} Bb7 {[%clk
00:31:05]} {[%emt 00:09:18]} 23. Rfe1 {[%clk 00:36:01]} {[%emt 00:02:21]} Rg8
{[%clk 00:19:56]} {[%emt 00:11:40]} 24. Ng6+ {[%clk 00:31:24]} {[%emt
00:05:06]} hxg6 {[%clk 00:18:41]} {[%emt 00:01:46]} 25. fxg6 {[%clk 00:31:45]}
{[%emt 00:00:08]} Qxe6 {[%clk 00:17:53]} {[%emt 00:01:19]} 26. Rxe6 {[%clk
00:31:40]} {[%emt 00:00:36]} Rxe6 {[%clk 00:18:22]} 27. Qh5+ {[%clk 00:31:59]}
{[%emt 00:00:09]} Kg7 {[%clk 00:18:14]} {[%emt 00:00:38]} 28. Qh7+ {[%clk
00:32:22]} {[%emt 00:00:07]} 1-0

[Event "32nd NATO Chess Championship"]
[Site "Tartu, Estonia"]
[Date "2022.06.28"]
[Round "2.16"]
[White "Onley, David E"]
[Black "Choina, Michal"]
[Result "1-0"]
[TimeControl "90 min + 30 sec increment from move one"]
[WhiteFideId "419311"]
[BlackFideId "1166565"]
[WhiteElo "2083"]
[BlackElo "1927"]

1. e4 {[%clk 01:26:57]} {[%emt 00:04:02]} c5 {[%clk 01:30:48]} {[%emt
00:00:13]} 2. Nf3 {[%clk 01:27:21]} {[%emt 00:00:06]} e6 {[%clk 01:31:10]}
{[%emt 00:00:08]} 3. d4 {[%clk 01:27:46]} {[%emt 00:00:05]} cxd4 {[%clk
01:31:33]} {[%emt 00:00:07]} 4. Nxd4 {[%clk 01:27:47]} {[%emt 00:00:30]} a6
{[%clk 01:31:47]} {[%emt 00:00:16]} 5. Nc3 {[%clk 01:27:30]} {[%emt 00:00:47]}
Qc7 {[%clk 01:31:54]} {[%emt 00:00:22]} 6. g3 {[%clk 01:26:20]} {[%emt
00:01:40]} Nf6 {[%clk 01:30:55]} {[%emt 00:01:29]} 7. Bg2 {[%clk 01:26:26]}
{[%emt 00:00:25]} Bc5 {[%clk 01:30:14]} {[%emt 00:01:10]} 8. O-O {[%clk
01:25:01]} {[%emt 00:01:54]} d6 {[%clk 01:21:48]} {[%emt 00:08:56]} 9. Nb3
{[%clk 01:24:36]} {[%emt 00:00:56]} Ba7 {[%clk 01:17:36]} {[%emt 00:04:41]} 10.
Qe2 {[%clk 01:21:58]} {[%emt 00:03:09]} h6 {[%clk 01:05:24]} {[%emt 00:12:42]}
11. Be3 {[%clk 01:18:04]} {[%emt 00:04:24]} Bxe3 {[%clk 01:02:34]} {[%emt
00:03:20]} 12. Qxe3 {[%clk 01:18:20]} {[%emt 00:00:14]} Ng4 {[%clk 00:59:57]}
{[%emt 00:03:07]} 13. Qe2 {[%clk 01:13:39]} {[%emt 00:05:11]} Ne5 {[%clk
00:56:04]} {[%emt 00:04:23]} 14. Nd2 {[%clk 01:07:46]} {[%emt 00:06:23]} Nbc6
{[%clk 00:45:46]} {[%emt 00:10:48]} 15. f4 {[%clk 00:56:44]} {[%emt 00:11:32]}
Qb6+ {[%clk 00:33:51]} {[%emt 00:12:25]} 16. Kh1 {[%clk 00:56:28]} {[%emt
00:00:46]} Qxb2 {[%clk 00:28:07]} {[%emt 00:06:14]} 17. Na4 {[%clk 00:44:58]}
{[%emt 00:12:00]} Qb4 {[%clk 00:26:28]} {[%emt 00:02:08]} 18. fxe5 {[%clk
00:44:13]} {[%emt 00:01:15]} Nxe5 {[%clk 00:25:12]} {[%emt 00:01:47]} 19. Nb3
{[%clk 00:30:17]} {[%emt 00:14:26]} Qxa4 {[%clk 00:25:00]} {[%emt 00:00:42]} 20.
Rad1 {[%clk 00:26:34]} {[%emt 00:04:12]} Qc6 {[%clk 00:22:53]} {[%emt
00:02:37]} 21. Rd4 {[%clk 00:23:39]} {[%emt 00:03:26]} Ke7 {[%clk 00:16:13]}
{[%emt 00:07:10]} 22. Rfd1 {[%clk 00:20:17]} {[%emt 00:03:52]} Rd8 {[%clk
00:16:31]} {[%emt 00:00:11]} 23. Qh5 {[%clk 00:17:58]} {[%emt 00:02:49]} b6
{[%clk 00:13:40]} {[%emt 00:03:22]} 24. Qh4+ {[%clk 00:15:32]} {[%emt
00:02:55]} f6 {[%clk 00:13:28]} {[%emt 00:00:43]} 25. R4d2 {[%clk 00:14:54]}
{[%emt 00:01:08]} Qe8 {[%clk 00:04:52]} {[%emt 00:09:06]} 26. Qf4 {[%clk
00:13:07]} {[%emt 00:02:17]} Bb7 {[%clk 00:03:29]} {[%emt 00:01:53]} 27. Nd4
{[%clk 00:12:18]} {[%emt 00:01:19]} g5 {[%clk 00:03:31]} {[%emt 00:00:28]} 28.
Qf1 {[%clk 00:09:50]} {[%emt 00:02:58]} Qg6 {[%clk 00:02:36]} {[%emt 00:01:25]}
29. Re2 {[%clk 00:09:16]} {[%emt 00:01:04]} Rac8 {[%clk 00:02:52]} {[%emt
00:00:14]} 30. Qe1 {[%clk 00:07:37]} {[%emt 00:02:08]} Rc4 {[%clk 00:02:10]}
{[%emt 00:01:12]} 31. Kg1 {[%clk 00:07:05]} {[%emt 00:01:03]} h5 {[%clk
00:02:12]} {[%emt 00:00:28]} 32. h3 {[%clk 00:07:12]} {[%emt 00:00:23]} h4
{[%clk 00:01:42]} {[%emt 00:01:00]} 33. g4 {[%clk 00:07:38]} {[%emt 00:00:05]}
Qf7 {[%clk 00:01:37]} {[%emt 00:00:34]} 34. Re3 {[%clk 00:07:06]} {[%emt
00:01:02]} Kf8 {[%clk 00:01:19]} {[%emt 00:00:49]} 35. Bf1 {[%clk 00:06:42]}
{[%emt 00:00:53]} Rcc8 {[%clk 00:01:09]} {[%emt 00:00:41]} 36. Qb4 {[%clk
00:05:40]} {[%emt 00:01:31]} b5 {[%clk 00:01:14]} {[%emt 00:00:25]} 37. a4
{[%clk 00:04:28]} {[%emt 00:01:42]} Nc4 {[%clk 00:00:35]} {[%emt 00:01:09]} 38.
Ree1 {[%clk 00:04:30]} {[%emt 00:00:27]} Rc5 {[%clk 00:00:33]} {[%emt
00:00:33]} 39. axb5 {[%clk 00:04:33]} {[%emt 00:00:28]} a5 {[%clk 00:00:36]}
{[%emt 00:00:27]} 40. Qb3 {[%clk 00:04:39]} {[%emt 00:00:23]} Rdc8 {[%clk
00:00:33]} {[%emt 00:00:34]} 41. Nc6 {[%clk 00:04:17]} {[%emt 00:00:51]} Bxc6
{[%clk 00:00:37]} {[%emt 00:00:26]} 42. Bxc4 {[%clk 00:04:17]} {[%emt
00:00:30]} Bd7 {[%clk 00:00:33]} {[%emt 00:00:34]} 43. Bd3 {[%clk 00:04:05]}
{[%emt 00:00:43]} e5 {[%clk 00:00:44]} {[%emt 00:00:19]} 44. Qa3 {[%clk
00:03:10]} {[%emt 00:01:25]} Qe8 {[%clk 00:00:39]} {[%emt 00:00:35]} 45. b6
{[%clk 00:02:16]} {[%emt 00:01:24]} Rb8 {[%clk 00:00:50]} {[%emt 00:00:18]} 46.
Bc4 {[%clk 00:02:09]} {[%emt 00:00:37]} Rxc4 {[%clk 00:00:45]} {[%emt
00:00:35]} 47. Qxd6+ {[%clk 00:02:21]} {[%emt 00:00:18]} Kf7 {[%clk 00:00:53]}
{[%emt 00:00:22]} 48. Rf1 {[%clk 00:01:03]} {[%emt 00:01:48]} Be6 {[%clk
00:00:35]} {[%emt 00:00:48]} 49. Qxe5 {[%clk 00:01:27]} {[%emt 00:00:06]} Qe7
{[%clk 00:00:33]} {[%emt 00:00:32]} 50. Qxb8 {[%clk 00:01:25]} {[%emt
00:00:32]} Qc5+ {[%clk 00:00:52]} {[%emt 00:00:12]} 51. Kh1 {[%clk 00:01:40]}
{[%emt 00:00:15]} Qe3 {[%clk 00:00:57]} {[%emt 00:00:24]} 52. Qb7+ {[%clk
00:00:54]} {[%emt 00:01:16]} Kg6 {[%clk 00:01:06]} {[%emt 00:00:21]} 53. Rd3
{[%clk 00:01:06]} {[%emt 00:00:19]} Qxe4+ {[%clk 00:00:33]} {[%emt 00:01:03]}
54. Qxe4+ {[%clk 00:01:28]} {[%emt 00:00:07]} Rxe4 {[%clk 00:01:01]} {[%emt
00:00:02]} 55. Rb1 {[%clk 00:00:43]} {[%emt 00:01:15]} Bc8 {[%clk 00:00:52]}
{[%emt 00:00:39]} 56. b7 {[%clk 00:00:56]} {[%emt 00:00:18]} Bxb7 {[%clk
00:01:20]} {[%emt 00:00:01]} 57. Rxb7 {[%clk 00:01:19]} {[%emt 00:00:07]} Re1+
{[%clk 00:01:41]} {[%emt 00:00:09]} 58. Kg2 {[%clk 00:01:41]} {[%emt 00:00:08]}
Re2+ {[%clk 00:02:06]} {[%emt 00:00:05]} 59. Kf3 {[%clk 00:02:03]} {[%emt
00:00:08]} Rxc2 {[%clk 00:02:31]} {[%emt 00:00:05]} 60. Ra7 {[%clk 00:02:07]}
{[%emt 00:00:26]} 1-0

[Event "32nd NATO Chess Championship"]
[Site "Tartu, Estonia"]
[Date "2022.06.28"]
[Round "2.17"]
[White "Tammisto, Janek"]
[Black "Keough, Robert"]
[Result "0-1"]
[TimeControl "90 min + 30 sec increment from move one"]
[WhiteFideId "4510950"]
[BlackFideId "410667"]
[WhiteElo "1881"]
[BlackElo "2074"]

1. d4 {[%clk 01:30:30]} {[%emt 00:45:19]} Nf6 {[%clk 01:25:55]} {[%emt
00:05:33]} 2. Nf3 {[%clk 01:31:24]} {[%emt 00:00:05]} g6 {[%clk 01:26:21]}
{[%emt 00:00:04]} 3. c4 {[%clk 01:29:53]} {[%emt 00:02:01]} Bg7 {[%clk
01:26:29]} {[%emt 00:00:22]} 4. Nc3 {[%clk 01:30:15]} {[%emt 00:00:08]} O-O
{[%clk 01:26:53]} {[%emt 00:00:06]} 5. e4 {[%clk 01:29:53]} {[%emt 00:00:52]}
d6 {[%clk 01:27:16]} {[%emt 00:00:06]} 6. Be2 {[%clk 01:29:19]} {[%emt
00:01:05]} e5 {[%clk 01:27:40]} {[%emt 00:00:06]} 7. d5 {[%clk 01:27:55]}
{[%emt 00:01:55]} Na6 {[%clk 01:26:17]} {[%emt 00:01:52]} 8. Bg5 {[%clk
01:23:59]} {[%emt 00:04:25]} h6 {[%clk 01:25:59]} {[%emt 00:00:49]} 9. Bh4
{[%clk 01:22:55]} {[%emt 00:01:34]} Qe8 {[%clk 01:25:26]} {[%emt 00:01:03]} 10.
O-O {[%clk 01:22:21]} {[%emt 00:01:03]} Nc5 {[%clk 01:25:13]} {[%emt 00:00:44]}
11. Bxf6 {[%clk 01:21:11]} {[%emt 00:01:40]} Bxf6 {[%clk 01:25:37]} {[%emt
00:00:06]} 12. b4 {[%clk 01:20:54]} {[%emt 00:00:47]} Nd7 {[%clk 01:25:44]}
{[%emt 00:00:23]} 13. a4 {[%clk 01:19:05]} {[%emt 00:02:20]} a5 {[%clk
01:25:26]} {[%emt 00:00:47]} 14. Nb5 {[%clk 01:17:38]} {[%emt 00:01:57]} Bd8
{[%clk 01:24:52]} {[%emt 00:01:03]} 15. c5 {[%clk 01:13:45]} {[%emt 00:04:24]}
dxc5 {[%clk 01:24:13]} {[%emt 00:01:09]} 16. bxc5 {[%clk 01:14:13]} {[%emt
00:00:02]} Nxc5 {[%clk 01:24:29]} {[%emt 00:00:14]} 17. Qc1 {[%clk 01:14:16]}
{[%emt 00:00:26]} Nxe4 {[%clk 01:24:50]} {[%emt 00:00:09]} 18. Qxh6 {[%clk
01:14:22]} {[%emt 00:00:25]} c6 {[%clk 01:16:13]} {[%emt 00:09:08]} 19. dxc6
{[%clk 01:11:53]} {[%emt 00:02:58]} bxc6 {[%clk 01:16:06]} {[%emt 00:00:38]} 20.
Rae1 {[%clk 01:05:30]} {[%emt 00:06:53]} Bf5 {[%clk 01:11:16]} {[%emt
00:05:18]} 21. Bd3 {[%clk 01:03:41]} {[%emt 00:02:19]} cxb5 {[%clk 01:09:44]}
{[%emt 00:02:03]} 22. Bxe4 {[%clk 01:04:01]} {[%emt 00:00:10]} Bxe4 {[%clk
01:09:59]} {[%emt 00:00:14]} 23. Rxe4 {[%clk 01:04:27]} {[%emt 00:00:04]} Bf6
{[%clk 01:09:51]} {[%emt 00:00:37]} 24. axb5 {[%clk 01:02:40]} {[%emt
00:02:18]} Qxb5 {[%clk 01:08:11]} {[%emt 00:02:10]} 25. Ng5 {[%clk 01:02:29]}
{[%emt 00:00:42]} Bxg5 {[%clk 01:08:32]} {[%emt 00:00:09]} 26. Qxg5 {[%clk
01:02:54]} {[%emt 00:00:05]} Rfe8 {[%clk 01:06:08]} {[%emt 00:02:53]} 27. Rh4
{[%clk 01:02:38]} {[%emt 00:00:46]} Qb6 {[%clk 01:04:52]} {[%emt 00:01:47]} 28.
Qh6 {[%clk 01:02:26]} {[%emt 00:00:41]} Qf6 {[%clk 01:05:11]} {[%emt 00:00:11]}
29. Re1 {[%clk 00:59:38]} {[%emt 00:03:19]} Qg7 {[%clk 01:05:05]} {[%emt
00:00:36]} 30. Qxg7+ {[%clk 00:59:00]} {[%emt 00:01:07]} Kxg7 {[%clk 01:05:30]}
{[%emt 00:00:06]} 31. Rhe4 {[%clk 00:59:13]} {[%emt 00:00:17]} a4 {[%clk
01:04:24]} {[%emt 00:01:37]} 32. Rxe5 {[%clk 00:58:53]} {[%emt 00:00:49]} Rxe5
{[%clk 01:04:49]} {[%emt 00:00:04]} 33. Rxe5 {[%clk 00:59:17]} {[%emt
00:00:07]} a3 {[%clk 01:05:17]} {[%emt 00:00:02]} 34. Re1 {[%clk 00:59:23]}
{[%emt 00:00:23]} a2 {[%clk 01:05:38]} {[%emt 00:00:09]} 35. Ra1 {[%clk
00:59:50]} {[%emt 00:00:03]} Rb8 {[%clk 01:05:58]} {[%emt 00:00:11]} 0-1

[Event "32nd NATO Chess Championship"]
[Site "Tartu, Estonia"]
[Date "2022.06.28"]
[Round "2.18"]
[White "Nikomanis, Andreas"]
[Black "Farrell, John"]
[Result "1/2-1/2"]
[TimeControl "90 min + 30 sec increment from move one"]
[WhiteFideId "4213831"]
[BlackFideId "2024608"]
[WhiteElo "2068"]
[BlackElo "1913"]

1. e4 {[%clk 01:30:54]} {[%emt 00:00:04]} e5 {[%clk 01:30:55]} {[%emt
00:00:06]} 2. Nf3 {[%clk 01:30:58]} {[%emt 00:00:26]} Nf6 {[%clk 01:31:09]}
{[%emt 00:00:15]} 3. Nxe5 {[%clk 01:31:11]} {[%emt 00:00:17]} d6 {[%clk
01:31:34]} {[%emt 00:00:06]} 4. Nf3 {[%clk 01:31:37]} {[%emt 00:00:04]} Nxe4
{[%clk 01:31:57]} {[%emt 00:00:07]} 5. d4 {[%clk 01:30:54]} {[%emt 00:01:12]}
d5 {[%clk 01:32:20]} {[%emt 00:00:08]} 6. Bd3 {[%clk 01:31:13]} {[%emt
00:00:10]} Bd6 {[%clk 01:32:37]} {[%emt 00:00:13]} 7. O-O {[%clk 01:31:05]}
{[%emt 00:00:38]} O-O {[%clk 01:32:23]} {[%emt 00:00:45]} 8. c4 {[%clk
01:31:22]} {[%emt 00:00:12]} c6 {[%clk 01:32:38]} {[%emt 00:00:15]} 9. Qc2
{[%clk 01:31:29]} {[%emt 00:00:23]} Bf5 {[%clk 01:31:13]} {[%emt 00:01:56]} 10.
Nc3 {[%clk 01:30:33]} {[%emt 00:01:25]} Re8 {[%clk 01:30:56]} {[%emt 00:00:47]}
11. Re1 {[%clk 01:30:07]} {[%emt 00:00:56]} Na6 {[%clk 01:28:29]} {[%emt
00:02:58]} 12. a3 {[%clk 01:28:40]} {[%emt 00:01:56]} Bg4 {[%clk 01:13:32]}
{[%emt 00:15:27]} 13. Bg5 {[%clk 00:47:31]} {[%emt 00:41:39]} f6 {[%clk
01:08:16]} {[%emt 00:05:47]} 14. Bh4 {[%clk 00:45:11]} {[%emt 00:02:49]} g5
{[%clk 00:43:26]} {[%emt 00:25:20]} 15. Bg3 {[%clk 00:38:12]} {[%emt 00:07:29]}
f5 {[%clk 00:43:00]} {[%emt 00:00:56]} 16. Be5 {[%clk 00:31:55]} {[%emt
00:06:47]} Nc7 {[%clk 00:39:19]} {[%emt 00:04:11]} 17. c5 {[%clk 00:26:27]}
{[%emt 00:05:59]} Be7 {[%clk 00:35:00]} {[%emt 00:04:49]} 18. Bxc7 {[%clk
00:25:01]} {[%emt 00:01:56]} Qxc7 {[%clk 00:34:42]} {[%emt 00:00:48]} 19. Ne5
{[%clk 00:25:25]} {[%emt 00:00:05]} Bh5 {[%clk 00:34:08]} {[%emt 00:01:03]} 20.
f3 {[%clk 00:22:10]} {[%emt 00:03:46]} Bxc5 {[%clk 00:33:18]} {[%emt 00:01:20]}
21. dxc5 {[%clk 00:22:08]} {[%emt 00:00:32]} Qxe5 {[%clk 00:33:14]} {[%emt
00:00:35]} 22. fxe4 {[%clk 00:22:05]} {[%emt 00:00:33]} fxe4 {[%clk 00:32:12]}
{[%emt 00:01:31]} 23. Nxe4 {[%clk 00:16:04]} {[%emt 00:06:31]} dxe4 {[%clk
00:31:30]} {[%emt 00:01:12]} 24. Rxe4 {[%clk 00:14:35]} {[%emt 00:01:59]} Qg7
{[%clk 00:31:14]} {[%emt 00:00:46]} 25. Rb4 {[%clk 00:07:14]} {[%emt 00:07:51]}
Rab8 {[%clk 00:31:14]} {[%emt 00:00:30]} 26. Rf1 {[%clk 00:06:27]} {[%emt
00:01:17]} Bf7 {[%clk 00:29:47]} {[%emt 00:01:58]} 27. h4 {[%clk 00:02:02]}
{[%emt 00:04:55]} Re5 {[%clk 00:25:00]} {[%emt 00:05:16]} 28. Rg4 {[%clk
00:01:45]} {[%emt 00:00:47]} h5 {[%clk 00:21:43]} {[%emt 00:03:47]} 29. Rxg5
{[%clk 00:01:49]} {[%emt 00:00:26]} Rxg5 {[%clk 00:22:00]} {[%emt 00:00:13]} 30.
hxg5 {[%clk 00:02:16]} {[%emt 00:00:03]} Qxg5 {[%clk 00:20:34]} {[%emt
00:01:57]} 31. Bh7+ {[%clk 00:02:02]} {[%emt 00:00:44]} Kg7 {[%clk 00:17:51]}
{[%emt 00:03:13]} 32. Qc3+ {[%clk 00:02:11]} {[%emt 00:00:21]} Kxh7 {[%clk
00:17:02]} {[%emt 00:01:18]} 33. Rxf7+ {[%clk 00:02:36]} {[%emt 00:00:06]} Kg8
{[%clk 00:16:49]} {[%emt 00:00:42]} 34. Qc4 {[%clk 00:02:47]} {[%emt 00:00:19]}
Kh8 {[%clk 00:15:29]} {[%emt 00:01:49]} 35. Qd4+ {[%clk 00:02:18]} {[%emt
00:00:59]} Kg8 {[%clk 00:15:37]} {[%emt 00:00:23]} 36. Qf2 {[%clk 00:00:41]}
{[%emt 00:02:07]} Rd8 {[%clk 00:12:13]} {[%emt 00:03:54]} 1/2-1/2

[Event "32nd NATO Chess Championship"]
[Site "Tartu, Estonia"]
[Date "2022.06.28"]
[Round "2.19"]
[White "Wendler, Edward"]
[Black "Sauer, Marko"]
[Result "0-1"]
[TimeControl "90 min + 30 sec increment from move one"]
[WhiteFideId "30956277"]
[BlackFideId "1270766"]
[WhiteElo "1839"]
[BlackElo "2065"]

1. e4 {[%clk 01:30:56]} {[%emt 00:00:02]} c5 {[%clk 01:30:50]} {[%emt
00:00:11]} 2. Nf3 {[%clk 01:31:19]} {[%emt 00:00:07]} e6 {[%clk 01:31:00]}
{[%emt 00:00:20]} 3. d4 {[%clk 01:31:13]} {[%emt 00:00:35]} cxd4 {[%clk
01:31:12]} {[%emt 00:00:19]} 4. Nxd4 {[%clk 01:31:35]} {[%emt 00:00:08]} a6
{[%clk 01:31:37]} {[%emt 00:00:06]} 5. Bd3 {[%clk 01:30:35]} {[%emt 00:01:29]}
Qc7 {[%clk 01:31:09]} {[%emt 00:00:59]} 6. Be3 {[%clk 01:28:22]} {[%emt
00:02:41]} Nf6 {[%clk 01:28:59]} {[%emt 00:02:41]} 7. O-O {[%clk 01:26:00]}
{[%emt 00:02:50]} b5 {[%clk 01:25:13]} {[%emt 00:04:19]} 8. Nd2 {[%clk
01:22:25]} {[%emt 00:04:03]} Bb7 {[%clk 01:24:47]} {[%emt 00:00:57]} 9. Qe2
{[%clk 01:17:54]} {[%emt 00:05:00]} d6 {[%clk 01:13:38]} {[%emt 00:11:40]} 10.
a4 {[%clk 01:10:02]} {[%emt 00:08:22]} b4 {[%clk 01:07:18]} {[%emt 00:06:51]}
11. Rfc1 {[%clk 01:06:21]} {[%emt 00:04:10]} d5 {[%clk 00:57:59]} {[%emt
00:09:49]} 12. Bg5 {[%clk 00:47:50]} {[%emt 00:19:00]} Nbd7 {[%clk 00:50:00]}
{[%emt 00:08:30]} 13. exd5 {[%clk 00:41:40]} {[%emt 00:06:40]} Bxd5 {[%clk
00:46:09]} {[%emt 00:04:21]} 14. Bxa6 {[%clk 00:29:20]} {[%emt 00:12:50]} Qb6
{[%clk 00:39:48]} {[%emt 00:06:51]} 15. Nxe6 {[%clk 00:10:25]} {[%emt
00:19:24]} fxe6 {[%clk 00:35:13]} {[%emt 00:05:05]} 16. Bb5 {[%clk 00:07:56]}
{[%emt 00:02:59]} Be7 {[%clk 00:29:51]} {[%emt 00:05:53]} 17. Re1 {[%clk
00:06:35]} {[%emt 00:01:50]} Kf7 {[%emt 00:07:22]} 18. Bxd7 {[%clk 00:01:06]}
{[%emt 00:03:10]} Nxd7 {[%clk 00:26:05]} {[%emt 00:00:14]} 19. Bxe7 {[%clk
00:01:29]} {[%emt 00:00:07]} Kxe7 {[%clk 00:26:16]} {[%emt 00:00:18]} 20. Qg4
{[%clk 00:00:49]} {[%emt 00:01:10]} Kf7 {[%clk 00:23:27]} {[%emt 00:03:19]} 21.
Ne4 {[%clk 00:00:51]} {[%emt 00:00:28]} Rhf8 {[%clk 00:17:30]} {[%emt
00:06:27]} 22. Re3 {[%clk 00:00:32]} {[%emt 00:00:49]} Bxe4 {[%clk 00:16:32]}
{[%emt 00:01:28]} 23. Qxe4 {[%clk 00:00:57]} {[%emt 00:00:06]} Nf6 {[%clk
00:16:38]} {[%emt 00:00:23]} 24. Qh4 {[%clk 00:00:45]} {[%emt 00:00:42]} Kg8
{[%clk 00:15:52]} {[%emt 00:01:16]} 25. b3 {[%clk 00:00:31]} {[%emt 00:00:44]}
Rad8 {[%clk 00:14:43]} {[%emt 00:01:39]} 26. h3 {[%clk 00:00:33]} {[%emt
00:00:29]} Rd2 {[%clk 00:11:38]} {[%emt 00:03:34]} 27. Qc4 {[%clk 00:01:01]}
{[%emt 00:00:02]} Nd5 {[%clk 00:10:29]} {[%emt 00:01:39]} 0-1

[Event "32nd NATO Chess Championship"]
[Site "Tartu, Estonia"]
[Date "2022.06.28"]
[Round "2.21"]
[White "Tikerpuu, Mati"]
[Black "Flaata, Alexander R."]
[Result "1-0"]
[TimeControl "90 min + 30 sec increment from move one"]
[WhiteFideId "4505905"]
[BlackFideId "1502026"]
[WhiteElo "1819"]
[BlackElo "2048"]

1. b4 {[%clk 01:30:57]} {[%emt 00:00:02]} c6 {[%clk 01:28:02]} {[%emt
00:02:58]} 2. Bb2 {[%clk 01:31:19]} {[%emt 00:00:09]} a5 {[%clk 01:28:19]}
{[%emt 00:00:12]} 3. b5 {[%clk 01:29:07]} {[%emt 00:02:42]} d5 {[%clk
01:23:48]} {[%emt 00:05:00]} 4. e3 {[%clk 01:28:40]} {[%emt 00:00:58]} Bf5
{[%clk 01:23:06]} {[%emt 00:01:11]} 5. Nf3 {[%clk 01:26:33]} {[%emt 00:02:37]}
Nf6 {[%clk 01:22:58]} {[%emt 00:00:37]} 6. d4 {[%clk 01:25:34]} {[%emt
00:01:32]} e6 {[%clk 01:22:04]} {[%emt 00:01:23]} 7. a3 {[%clk 01:23:43]}
{[%emt 00:02:22]} Nbd7 {[%clk 01:21:36]} {[%emt 00:00:57]} 8. c4 {[%clk
01:19:17]} {[%emt 00:04:57]} dxc4 {[%clk 01:12:15]} {[%emt 00:09:51]} 9. Bxc4
{[%clk 01:14:23]} {[%emt 00:05:24]} Nb6 {[%clk 01:05:58]} {[%emt 00:06:46]} 10.
Be2 {[%clk 01:14:22]} {[%emt 00:00:31]} Bd6 {[%clk 01:05:35]} {[%emt 00:00:53]}
11. O-O {[%clk 01:13:39]} {[%emt 00:01:13]} h5 {[%clk 01:03:13]} {[%emt
00:02:52]} 12. Nc3 {[%clk 01:05:26]} {[%emt 00:08:44]} c5 {[%clk 00:57:14]}
{[%emt 00:06:28]} 13. Na4 {[%clk 00:55:24]} {[%emt 00:10:33]} Nxa4 {[%clk
00:53:53]} {[%emt 00:03:51]} 14. Qxa4 {[%clk 00:55:27]} {[%emt 00:00:26]} O-O
{[%clk 00:53:25]} {[%emt 00:00:58]} 15. Rfd1 {[%clk 00:49:59]} {[%emt
00:05:59]} Qe7 {[%clk 00:49:29]} {[%emt 00:04:25]} 16. Rac1 {[%clk 00:43:09]}
{[%emt 00:07:20]} Ne4 {[%clk 00:45:18]} {[%emt 00:04:40]} 17. dxc5 {[%clk
00:39:51]} {[%emt 00:03:50]} Bxc5 {[%clk 00:45:21]} {[%emt 00:00:26]} 18. Ne5
{[%clk 00:38:10]} {[%emt 00:02:11]} Bd6 {[%clk 00:35:28]} {[%emt 00:10:22]} 19.
Bf3 {[%clk 00:31:21]} {[%emt 00:07:19]} Nc5 {[%clk 00:31:26]} {[%emt 00:04:33]}
20. Qd4 {[%clk 00:22:29]} {[%emt 00:09:22]} Rad8 {[%clk 00:20:08]} {[%emt
00:11:47]} 21. Nc6 {[%clk 00:14:37]} {[%emt 00:08:23]} Qg5 {[%clk 00:20:29]}
{[%emt 00:00:08]} 22. Nxd8 {[%clk 00:14:39]} {[%emt 00:00:29]} Rxd8 {[%clk
00:20:44]} {[%emt 00:00:15]} 23. Rxc5 {[%clk 00:09:54]} {[%emt 00:05:15]} Bxh2+
{[%clk 00:20:45]} {[%emt 00:00:29]} 24. Kxh2 {[%clk 00:10:17]} {[%emt
00:00:07]} Rxd4 {[%clk 00:21:10]} {[%emt 00:00:04]} 25. Rxd4 {[%clk 00:10:16]}
{[%emt 00:00:32]} Qe7 {[%clk 00:19:22]} {[%emt 00:02:17]} 26. Rc8+ {[%clk
00:10:07]} {[%emt 00:00:40]} Kh7 {[%clk 00:19:45]} {[%emt 00:00:07]} 27. b6
{[%clk 00:10:20]} {[%emt 00:00:17]} e5 {[%clk 00:18:01]} {[%emt 00:02:14]} 28.
Rc7 {[%clk 00:10:14]} {[%emt 00:00:35]} Qe6 {[%clk 00:17:57]} {[%emt 00:00:32]}
29. Rdd7 {[%clk 00:08:52]} {[%emt 00:01:55]} e4 {[%clk 00:14:16]} {[%emt
00:04:11]} 30. Rxf7 {[%clk 00:07:01]} {[%emt 00:02:20]} exf3 {[%clk 00:14:38]}
{[%emt 00:00:08]} 31. Bxg7 {[%emt 00:03:00]} Qd6+ 32. Be5+ 1-0